Workbook

Sheet Superpesis
B1: Anuliisa Rautakorpi | E1: 18.5.1993 Lapua
B2: SUPERPESIS | E2: Runkosarja | I2: Kärkilyönnit (KL), pesänvälit | P2: Ylempi loppusarja | U2: Alempi loppusarja | Z2: Arvo-ottelut ja mitalit | AF2: Runkosarjan jälkeen
B3: Vuosi | C3: Sija | D3: Seura | E3: OTT | F3: KUN | G3: LÖI | H3: TOI | I3: KL | J3: 0 > 1 | K3: 1 > 2 | L3: 2 > 3 | M3: 3 > k | N3: KL-% | P3: OTT | Q3: KUN | R3: LÖI | S3: TOI | T3: KL | U3: OTT | V3: KUN | W3: LÖI | X3: TOI | Y3: KL | Z3: IL | AA3: LL | AB3: Halli | AC3: K | AD3: H | AE3: P
B4: 2010 | D4: Virkiä 2 | F4: ykköspesis
B5: 2011 | D5: Virkiä 2 | F5: ykköspesis
B6: 2012 | D6: Virkiä 2 | F6: ykköspesis
B7: 2012 | C7: 1. | D7: Virkiä | E7: 1 | F7: 0 | G7: 0 | H7: 1 | I7: 3 | J7: 2 | K7: 1 | L7: 0 | M7: 0 | N7: 100.0 % | O7: =PRODUCT(I7/N7) -> 3 | AC7: 1
B8: 2013 | C8: 10. | D8: Turku-Pesis | E8: 23 | F8: 1 | G8: 1 | H8: 17 | I8: 60 | J8: 25 | K8: 26 | L8: 7 | M8: 2 | N8: 42.3 % | O8: =PRODUCT(I8/N8) -> 141.8439716 | U8: 4 | V8: 0 | W8: 2 | X8: 3 | Y8: 11 | AF8: alemmat pudotuspelit
B9: 2014 | D9: SMJ | F9: ykköspesis | U9: 3 | V9: 0 | W9: 0 | X9: 5 | Y9: 11 | AF9: superpesiskarsinta
B10: 2015 | C10: 10. | D10: SMJ | E10: 24 | F10: 0 | G10: 0 | H10: 11 | I10: 72 | J10: 24 | K10: 43 | L10: 5 | M10: 0 | N10: 50.0 % | O10: 144
B11: 2016 | C11: 8. | D11: SMJ | E11: 21 | F11: 1 | G11: 2 | H11: 17 | I11: 69 | J11: 31 | K11: 27 | L11: 8 | M11: 3 | N11: 44.5 % | O11: 155 | P11: 3 | Q11: 0 | R11: 0 | S11: 0 | T11: 8 | AF11: play off
B12: Yhteensä | E12: =SUM(E4:E11) -> 69 | F12: 2 | G12: 3 | H12: 46 | I12: 204 | J12: 82 | K12: 97 | L12: 20 | M12: 5 | N12: =PRODUCT(I12/O12) -> 46.0 % | O12: =SUM(O5:O11) -> 443.8439716 | P12: =SUM(P4:P11) -> 3 | Q12: 0 | R12: 0 | S12: 0 | T12: 8 | U12: 7 | V12: 0 | W12: 2 | X12: 8 | Y12: 22 | Z12: 0 | AA12: 0 | AB12: 0 | AC12: 1 | AD12: 0 | AE12: 0
B13: Pesispörssi | D13: =SUM(F12:H12)+((I12-F12-G12)/3)+(E12/3)+(Z12*25)+(AA12*25)+(AB12*10)+(AC12*25)+(AD12*20)+(AE12*15)-25 -> 140.3
B15: URA SUPERISSA | E15: OTT | F15: KUN | G15: LÖI | H15: TOI | I15: KL | K15: ka/L | L15: ka/T | M15: ka/KL | N15: KL-% | P15: ENSIMMÄISET
B16: Runkosarja | E16: =PRODUCT(E12) -> 69 | F16: =PRODUCT(F12) -> 2 | G16: =PRODUCT(G12) -> 3 | H16: =PRODUCT(H12) -> 46 | I16: =PRODUCT(I12) -> 204 | K16: =PRODUCT((F16+G16)/E16) -> 0.07 | L16: =PRODUCT(H16/E16) -> 0.67 | M16: =PRODUCT(I16/E16) -> 2.96 | N16: =PRODUCT(N12) -> 46.0 % | O16: =PRODUCT(O12) -> 443.8439716 | P16: Ottelu | S16: 13.07. 2012 Virkiä - PeTo-Jussit 2-0 (3-0, 8-2) | AD16: 1. ottelu | AF16: 19 v 1 kk 25 pv
B17: Ylempi loppusarja | E17: =PRODUCT(P12) -> 3 | F17: =PRODUCT(Q12) -> 0 | G17: 0 | H17: 0 | I17: 8 | K17: =PRODUCT((F17+G17)/E17) -> 0.00 | L17: =PRODUCT(H17/E17) -> 0.00 | M17: =PRODUCT(I17/E17) -> 2.67 | N17: =PRODUCT(I17/O17) -> 36.4 % | O17: 22 | P17: Lyöty juoksu | S17: 08.06. 2013 KeKi - Turku-Pesis 1-0 (5-1, 4-4) | AD17: 7. ottelu | AF17: 20 v 0 kk 21 pv
B18: Alempi loppusarja | E18: =PRODUCT(U12) -> 7 | F18: =PRODUCT(V12) -> 0 | G18: =PRODUCT(W12) -> 2 | H18: =PRODUCT(X12) -> 8 | I18: =PRODUCT(Y12) -> 22 | K18: =PRODUCT((F18+G18)/E18) -> 0.29 | L18: =PRODUCT(H18/E18) -> 1.14 | M18: =PRODUCT(I18/E18) -> 3.14 | N18: =PRODUCT(I18/O18) -> 47.8 % | O18: 46 | P18: Tuotu juoksu | S18: 13.07. 2012 Virkiä - PeTo-Jussit 2-0 (3-0, 8-2) | AD18: 1. ottelu | AF18: 19 v 1 kk 25 pv
B19: KAIKKI | E19: =SUM(E16:E18) -> 79 | F19: =SUM(F16:F18) -> 2 | G19: =SUM(G16:G18) -> 5 | H19: =SUM(H16:H18) -> 54 | I19: =SUM(I16:I18) -> 234 | K19: =PRODUCT((F19+G19)/E19) -> 0.09 | L19: =PRODUCT(H19/E19) -> 0.68 | M19: =PRODUCT(I19/E19) -> 2.96 | N19: =PRODUCT(I19/O19) -> 45.7 % | O19: =SUM(O16:O18) -> 511.8439716 | P19: Kunnari | S19: 28.06. 2013 Roihu - Turku-Pesis 0-2 (3-8, 1-2) | AD19: 10. ottelu | AF19: 20 v 1 kk 10 pv
B21: Seurat | D21: Virkiä = Lapuan Virkiä (1907), kasvattajaseura
D22: Turku-Pesis = Turku-Pesis (ent. Lännen Pallo) (1949)
D23: SMJ = Seinäjoen Maila-Jussit (1932)

Sheet Arvo-ottelut
B1: ITÄ - LÄNSI - KORTTI
B2: Anuliisa Rautakorpi | C2: 18.5.1993 Lapua
B3: B-TYTÖT | C3: Itä - Länsi, tulos | D3: Joukkue | E3: Seura | G3: V | H3: T | I3: H | J3: Up. | K3: Lj. | L3: Palk. | M3: O | N3: K | O3: L | P3: T | Q3: KL | R3: 1 | S3: 2 | T3: 3 | U3: k | V3: KL-% | W3: Pelinjohtaja | X3: Yleisöä
B4: 21.07. 2012 Sotkamo | C4: 0-2 (2-8, 2-4) | D4: Länsi | E4: Virkiä | G4: 1 | K4: jok | M4: 1 | P4: 1 | Q4: 2/5 | R4: 2/2 | S4: 0/1 | T4: 0/1 | U4: 0/1 | V4: 40.0 % | W4: Vesa Puutonen | X4: 1909
